bitfinex/quotes_ETHUSD_20241023
["timestamp","ask_amount","ask_price","bid_price","bid_amount"]
[1729686939653,1.61436585,2572.5,2572.1,0.78341761]
[1729686939654,0.80718292,2572.5,2572.1,0.78341761]
[1729686939858,2.43178292,2572.6,2572.2,3.88763]
[1729686940063,2.43178292,2572.6,2572.0,3.9462461]
[1729686940064,3.8875,2572.4,2572.0,3.9462461]
[1729686940304,3.88762,2572.3,2572.0,0.0583161]
[1729686940462,9.22317092,2572.4,2572.0,0.0583161]
[1729686940664,12.303538,2572.4,2572.0,0.0583161]
[1729686940999,9.22317092,2572.4,2572.0,0.0583161]
[1729686941201,0.03800374,2572.3,2572.0,3.9463261]
[1729686941360,0.03800374,2572.3,2572.0,4.72968171]
[1729686941700,0.03800374,2572.3,2572.0,8.61762171]
[1729686941909,0.80718292,2572.5,2572.1,3.88777]
[1729686942059,5.51174,2572.6,2572.1,3.88777]
[1729686942060,0.03800818,2572.4,2572.1,3.88777]
[1729686942260,6.31892292,2572.6,2572.1,3.88777]
[1729686942698,0.03801261,2572.5,2572.1,3.88777]
[1729686943064,0.03801261,2572.5,2572.0,3.9462261]
[1729686943268,0.03801261,2572.5,2572.0,0.45293871]
[1729686943470,0.03801261,2572.5,2572.1,3.88787]
[1729686944201,4.73253553,2572.5,2572.0,4.34092871]
[1729686944410,8.27254511,2572.5,2572.0,3.9462661]
[1729686944705,3.88751,2572.4,2572.0,0.0583161]
[1729686945002,0.03796583,2572.3,2572.0,0.0583161]
[1729686945311,3.92554583,2572.3,2572.0,0.0583161]
[1729686945468,7.42778958,2572.2,2572.0,0.0583161]
[1729686945664,0.80718292,2572.3,2572.2,3.88772]
[1729686945864,6.76006292,2572.7,2572.1,3.88779]
[1729686946108,3.88733,2572.5,2572.0,3.9462361]
[1729686946305,4.69451292,2572.5,2572.0,3.9462361]
[1729686946470,3.54000958,2572.3,2572.0,0.0583161]
[1729686946870,3.88742,2572.4,2572.0,0.84178371]
[1729686946871,0.80718292,2572.4,2572.0,0.84178371]
[1729686947106,6.76006292,2572.7,2572.4,3.8873]
[1729686947914,5.95288,2572.7,2572.4,3.8873]
[1729686948894,5.95288,2572.7,2572.3,3.88757]
[1729686949098,5.95288,2572.7,2572.4,3.8874]
[1729686950418,5.95288,2572.7,2572.4,3.88735]
[1729686950795,9.83985,2572.7,2572.3,3.8875]
[1729686951317,9.83985,2572.7,2572.2,5.38759]
[1729686951318,3.88697,2572.7,2572.2,5.38759]
[1729686951517,3.88722,2572.6,2572.1,3.88778]
[1729686951720,3.8873,2572.5,2572.1,3.88778]
[1729686951937,4.69459292,2572.5,2572.0,4.72969371]
[1729686952620,4.69459292,2572.5,2572.1,3.88786]
[1729686952975,3.88741,2572.5,2572.1,3.88786]
[1729686953800,4.69431292,2572.6,2572.2,3.88769]
[1729686954103,0.80718292,2572.6,2572.2,3.88769]
[1729686954317,4.3471925,2572.7,2572.4,3.88741]
[1729686954495,0.80718292,2572.7,2572.4,3.88731]
[1729686954686,0.80718292,2572.7,2572.4,5.41221]
[1729686954892,0.80718292,2572.8,2572.5,3.88726]
[1729686955124,0.80718292,2572.8,2572.5,3.88717]
[1729686955625,4.69407292,2572.8,2572.2,3.88767]
[1729686955778,0.80718292,2572.6,2572.2,7.77529]
[1729686955980,4.69421292,2572.7,2572.3,3.88748]
[1729686956238,0.03819123,2572.5,2572.3,3.88748]
[1729686956514,0.0381868,2572.4,2572.3,3.88748]
[1729686956704,4.69421292,2572.7,2572.3,3.88748]
[1729686956905,0.03819566,2572.6,2572.3,3.88748]
[1729686958608,0.84537858,2572.6,2572.3,3.88748]
[1729686958788,0.03819566,2572.6,2572.4,3.88733]
[1729686959709,0.03819566,2572.6,2572.5,3.88726]
[1729686960022,0.80718292,2572.8,2572.4,3.88733]
[1729686960227,0.84537858,2572.6,2572.3,3.88754]
[1729686960428,0.80718292,2572.6,2572.0,0.0583161]
[1729686960595,7.42742958,2572.4,2572.0,3.88801]
[1729686960783,0.80718292,2572.4,2572.0,0.930596]
[1729686960984,0.80718292,2572.7,2572.5,3.88718]
[1729686961620,0.80718292,2572.6,2572.4,3.94571542]
[1729686962148,0.80718292,2572.7,2572.6,3.88711]
[1729686962324,0.80808702,2572.8,2572.6,3.88711]
[1729686962712,0.80808702,2572.9,2572.7,3.88688]
[1729686963243,0.80808702,2572.9,2572.6,3.88711]
[1729686963244,0.80808702,2572.8,2572.6,3.88711]
[1729686963385,0.80808702,2572.8,2572.6,3.88701]
[1729686963590,0.80808702,2572.8,2572.7,3.88687]
[1729686964501,0.80808702,2572.8,2572.4,1.63050542]
[1729686964696,0.80808702,2572.8,2572.6,3.88711]
[1729686964926,0.80808702,2572.8,2572.6,3.88709]
[1729686965223,0.80808702,2572.7,2572.6,3.88709]
[1729686965424,0.80808702,2572.8,2572.6,7.77412]
[1729686965628,0.80808702,2572.8,2572.7,3.88696]
[1729686965835,0.80808702,2572.9,2572.7,3.88696]
[1729686966045,0.80808702,2572.8,2572.7,3.88696]
[1729686966216,0.80808702,2572.9,2572.7,3.88696]
[1729686966621,0.80808702,2572.9,2572.8,3.88681]
[1729686966818,0.80808702,2572.9,2572.8,4.664187]
[1729686967166,1.21083078,2573.0,2572.9,3.88666]
[1729686967167,0.80808702,2573.0,2572.9,3.88666]
[1729686967441,0.80808702,2573.1,2573.0,3.88651]
[1729686967664,1.41636389,2573.2,2573.1,3.88636]
[1729686967799,0.60827687,2573.2,2573.0,3.88641]
[1729686968008,0.80909382,2573.1,2573.0,3.88638]
[1729686968229,1.41737069,2573.2,2573.1,3.88636]
[1729686968839,0.80909382,2573.2,2573.1,3.88636]
[1729686969247,0.93408832,2573.3,2573.0,3.88638]
[1729686969406,0.933924,2573.3,2573.2,3.88621]
[1729686970683,0.933924,2573.3,2573.1,3.88629]
[1729686970841,0.8089295,2573.2,2572.9,5.52440795]
[1729686971046,0.8089295,2573.2,2573.0,3.88644]
[1729686971390,0.03893203,2573.1,2573.0,3.88644]
[1729686971951,0.933924,2573.3,2573.1,3.8863]
[1729686972347,0.8089295,2573.2,2573.1,3.8863]
[1729686972586,0.8089295,2573.2,2573.0,3.88644]
[1729686972882,0.933924,2573.3,2573.2,3.88621]
[1729686973048,0.1249945,2573.3,2573.2,3.88621]
[1729686973250,0.1249945,2573.3,2572.9,5.52446795]
[1729686973477,3.54000958,2573.0,2572.9,0.05829795]
[1729686973680,8.23544908,2573.0,2572.9,0.05829795]
[1729686973903,8.63735036,2573.0,2572.9,0.05829795]
[1729686974085,9.59088543,2573.0,2572.9,0.05829795]
[1729686974285,11.24968543,2573.0,2572.9,0.05829795]
[1729686974524,9.63531958,2573.0,2572.9,0.05829795]
[1729686974680,11.25254737,2573.0,2572.9,0.05829795]
[1729686975089,6.81603737,2573.0,2572.9,0.05829795]
[1729686975279,6.41179262,2573.0,2572.9,0.05829795]
[1729686975919,4.34869751,2573.0,2572.9,0.05829795]
[1729686976118,3.54000958,2573.0,2572.9,0.05829795]
[1729686976317,4.75299262,2573.0,2572.9,0.05829795]
[1729686976503,0.80874033,2573.0,2572.9,0.05829795]
[1729686976821,0.80874033,2573.2,2572.9,0.05829795]
[1729686976989,0.80874033,2573.2,2573.1,3.88636]
[1729686977229,0.93373483,2573.3,2573.1,3.88636]
[1729686977384,0.93373483,2573.3,2573.0,3.8865]
[1729686977385,0.93373483,2573.3,2573.2,3.88621]
[1729686977785,0.93373483,2573.3,2573.1,3.88635]
[1729686978004,0.93373483,2573.3,2573.1,7.77264]
[1729686978223,0.1249945,2573.3,2573.2,3.88621]
[1729686978429,0.93373483,2573.3,2573.2,3.88621]
[1729686978596,0.1249945,2573.3,2573.1,3.88627]
[1729686978786,3.54000958,2573.2,2572.9,3.94493795]
[1729686978991,4.34874991,2573.2,2572.9,3.94493795]
[1729686979684,8.23506991,2573.2,2572.9,0.05829795]
[1729686980224,4.34874991,2573.2,2572.9,3.94488795]
[1729686980428,3.54000958,2573.2,2572.9,3.94488795]
[1729686980810,0.93373483,2573.3,2572.9,0.05829795]
[1729686980998,0.1249945,2573.3,2573.0,3.88643]
[1729686981323,0.93373483,2573.3,2573.0,0.79089754]
[1729686981540,0.1249945,2573.3,2573.1,3.88621]
[1729686981821,0.1249945,2573.3,2573.2,3.88621]
[1729686982025,0.1249945,2573.3,2573.1,3.88621]
[1729686982228,0.1249945,2573.3,2572.9,3.94481795]
[1729686982436,4.47374441,2573.3,2572.9,3.94493795]
[1729686982585,4.47374441,2573.3,2573.0,3.8865]
[1729686982789,3.66500408,2573.3,2573.0,3.8865]
[1729686983011,4.47374441,2573.3,2573.0,3.8865]
[1729686983319,0.1249945,2573.3,2573.0,3.88651]
[1729686983525,3.66500408,2573.3,2573.0,3.88651]
[1729686983825,3.54000958,2573.1,2572.8,7.77343]
[1729686984032,0.80874033,2573.2,2572.8,7.77342]
[1729686984334,8.35986441,2573.3,2572.9,3.94493797]
[1729686984830,4.47374441,2573.3,2572.9,3.94493797]
[1729686985208,8.35985441,2573.3,2572.9,3.94493797]
[1729686985415,4.47374441,2573.3,2573.0,1.0]
[1729686985615,0.80874033,2573.2,2573.0,1.0]
[1729686986161,0.03897929,2573.1,2573.0,1.0]
[1729686986311,0.80874033,2573.2,2573.0,1.0]
[1729686986648,0.03897929,2573.1,2573.0,1.0]
[1729686986817,4.47374441,2573.3,2573.0,1.0]
[1729686987013,0.03897929,2573.1,2573.0,1.0]
[1729686987218,3.66500408,2573.3,2573.0,1.0]
[1729686987535,0.03897929,2573.1,2573.0,4.88644]
[1729686987845,0.03897929,2573.1,2573.0,1.0]
[1729686988046,0.80874033,2573.2,2573.0,1.0]
[1729686988338,0.03897929,2573.1,2573.0,1.0]
[1729686989146,0.03897929,2573.1,2573.0,4.88651]
[1729686989304,4.47374441,2573.3,2573.0,4.88651]
[1729686989506,0.03898372,2573.2,2573.1,3.88636]
[1729686989810,4.47374441,2573.3,2573.1,3.88636]
[1729686990014,0.03898372,2573.2,2573.1,3.88636]
[1729686990256,0.93373483,2573.3,2573.2,3.88621]
[1729686990542,0.1249945,2573.3,2573.2,3.88621]
[1729686993407,3.88636,2573.1,2573.0,1.0]
[1729686993627,8.23525374,2573.1,2573.0,1.0]
[1729686993849,7.42636958,2573.1,2573.0,1.0]
[1729686994147,8.63935262,2573.1,2573.0,1.0]
[1729686994329,7.97636958,2573.1,2573.0,1.0]
[1729686994531,9.99745968,2573.1,2573.0,1.0]
[1729686994742,7.97636958,2573.1,2573.0,1.0]
[1729686994939,9.99745968,2573.1,2573.0,1.0]
[1729686995255,7.97636958,2573.1,2573.0,1.0]
[1729686995408,9.99818724,2573.1,2573.0,1.0]
[1729686995608,9.9982168,2573.1,2573.0,1.0]
[1729686995804,9.4482168,2573.1,2573.0,1.0]
[1729686996014,9.043919,2573.1,2573.0,1.0]
[1729686996735,5.157559,2573.1,2573.0,1.0]
[1729686996932,4.7532534,2573.1,2573.0,1.0]
[1729686997243,1.21324382,2573.1,2573.0,1.0]
[1729686997418,5.09960382,2573.1,2573.0,1.0]
[1729686997764,5.09969397,2573.1,2573.0,1.0]
[1729686998053,9.9982168,2573.1,2573.0,1.0]
[1729686998361,9.99860096,2573.1,2573.0,1.0]
[1729686998731,7.97636958,2573.1,2573.0,1.0]
[1729687000014,9.99899949,2573.1,2573.0,1.0]
[1729687000218,9.99903998,2573.1,2573.0,1.0]
[1729687000462,7.97636958,2573.1,2573.0,1.0]
[1729687000955,10.03793781,2573.1,2573.0,1.0]
[1729687002247,8.01513236,2573.1,2573.0,1.0]
[1729687002436,22.93522642,2573.1,2573.0,1.0]
[1729687002635,24.43662642,2573.1,2573.0,1.0]
[1729687003037,22.00942194,2573.1,2573.0,1.0]
[1729687003238,18.46941236,2573.1,2573.0,1.0]
[1729687003439,20.89623709,2573.1,2573.0,1.0]
[1729687003963,20.89639354,2573.1,2573.0,1.0]
[1729687004862,20.89642117,2573.1,2573.0,1.0]
[1729687005371,18.46941236,2573.1,2573.0,1.0]
[1729687005574,17.35634458,2573.1,2573.0,1.0]
[1729687005863,18.46941236,2573.1,2573.0,1.0]
[1729687006068,20.89645423,2573.1,2573.0,1.0]
[1729687006255,18.46941236,2573.1,2573.0,1.0]
[1729687007539,12.51653236,2573.1,2573.0,1.0]
[1729687010172,13.44187253,2573.1,2573.0,1.0]
[1729687010475,11.01513236,2573.1,2573.0,1.0]
[1729687018800,8.01513236,2573.1,2573.0,1.0]
[1729687019749,10.03735499,2573.1,2573.0,1.0]
[1729687020154,11.01513236,2573.1,2573.0,1.0]
[1729687024791,12.58533236,2573.1,2573.0,1.0]
[1729687025496,0.01,2573.0,2572.3,1.5163]
[1729687025699,16.12534194,2573.1,2572.0,1.5163]
[1729687025700,3.88787,2572.1,2572.0,1.5163]
[1729687025871,7.42787958,2572.1,2572.0,1.5163]
[1729687026068,7.46486424,2572.1,2572.0,1.5163]
[1729687026892,3.88802,2572.0,2571.9,0.05831962]
[1729687027280,3.92491084,2572.0,2571.9,0.05831962]
[1729687029159,0.03689084,2572.0,2571.9,0.05831962]
[1729687029355,3.92491084,2572.0,2571.9,0.05831962]
[1729687029598,4.47491084,2572.0,2571.9,0.05831962]
[1729687030864,3.88817,2571.9,2571.8,1.5941]
[1729687031069,7.42817958,2571.9,2571.5,1.6157]
[1729687031297,7.46506599,2571.9,2571.5,1.6157]
[1729687031598,3.57689599,2571.9,2571.5,5.5044]
[1729687031800,3.88832,2571.8,2571.5,1.6157]
[1729687032009,7.42862958,2571.7,2571.5,1.6157]
[1729687032205,7.46550712,2571.7,2571.5,1.6157]
[1729687032413,0.03687754,2571.7,2571.5,1.6157]
[1729687032918,7.77673,2571.8,2571.5,1.6157]
[1729687033214,3.88832,2571.8,2571.5,1.6157]
[1729687033511,0.0364989,2571.7,2571.5,1.6157]
[1729687033722,0.0364989,2571.7,2571.5,5.50447]
[1729687034015,0.03649447,2571.6,2571.5,5.50447]
[1729687034215,3.88821,2571.9,2571.5,5.50447]
[1729687034424,0.03649447,2571.6,2571.5,1.6157]
[1729687034575,3.88854,2571.7,2571.5,1.6157]
[1729687034782,0.03649195,2571.6,2571.5,1.6157]
[1729687037993,3.92511195,2571.6,2571.5,1.6157]
[1729687038181,3.92511195,2571.6,2571.2,0.05833748]
[1729687038182,3.88881,2571.5,2571.2,1.57213748]
[1729687038528,0.03648559,2571.4,2571.2,1.57213748]
[1729687038689,3.92542559,2571.4,2571.2,1.57213748]
[1729687039895,7.81449559,2571.4,2571.2,1.57213748]
[1729687040483,3.88908,2571.3,2571.2,0.05833748]
[1729687040688,3.92549275,2571.3,2571.2,0.05833748]
[1729687042034,0.03641275,2571.3,2571.2,0.05833748]
[1729687043320,0.03641275,2571.3,2571.2,3.94756748]
[1729687043724,3.88874,2571.6,2571.2,3.88923]
[1729687043923,0.03641275,2571.3,2571.2,3.88923]
[1729687044126,3.88874,2571.6,2571.2,3.88923]
[1729687044324,0.03641275,2571.3,2571.2,3.88923]
[1729687044522,3.88874,2571.6,2571.0,9.39263168]
[1729687044523,3.88884,2571.5,2571.0,9.39263168]
[1729687044707,0.03641275,2571.3,2571.0,9.39263168]
[1729687044947,0.03641719,2571.4,2571.1,3.88927]
[1729687045271,3.88885,2571.5,2571.1,3.88927]
[1729687045442,0.03641275,2571.3,2571.1,3.88927]
[1729687045631,3.88885,2571.5,2571.1,3.88927]
[1729687045834,0.03640832,2571.2,2571.1,3.88927]
[1729687046061,6.88864,2571.6,2571.2,3.88916]
[1729687046269,9.84143,2571.7,2571.3,3.88899]
[1729687047132,3.88865,2571.6,2571.1,4.53346749]
[1729687047546,3.88865,2571.6,2571.2,3.88914]
[1729687049076,3.88899,2571.4,2571.0,1.5554]
[1729687049280,3.88909,2571.3,2571.0,1.5554]
[1729687049479,3.88932,2571.2,2571.0,1.5554]
[1729687049684,3.88938,2571.1,2571.0,1.61373697]
[1729687049836,3.88909,2571.3,2571.0,0.05833697]
[1729687050037,3.88926,2571.2,2571.0,0.05833697]
[1729687050739,3.88909,2571.3,2571.0,0.05833697]
[1729687050970,3.88862,2571.6,2571.1,3.88935]
[1729687051135,3.88916,2571.3,2571.0,0.05833697]
[1729687052037,3.88925,2571.2,2571.0,0.05833697]
[1729687052445,3.8891,2571.3,2571.0,0.05833697]
[1729687053461,3.88895,2571.4,2571.0,3.94786697]
[1729687053672,3.88871,2571.6,2571.3,1.6403]
[1729687055897,6.7603314,2572.1,2571.6,3.88854]
[1729687056064,0.8074514,2572.1,2571.7,3.88841]
[1729687056265,8.63887715,2572.3,2571.7,3.88841]
[1729687056266,4.6951714,2572.2,2571.8,5.52862]
[1729687057055,0.8074514,2572.2,2571.8,1.6403]
[1729687057256,3.88788,2572.1,2571.8,1.6403]
[1729687057455,0.8074514,2572.3,2572.0,3.88798]
[1729687057769,5.09874757,2572.4,2571.9,3.88811]
[1729687057770,3.88753,2572.4,2571.9,3.88811]
[1729687057960,4.34746098,2572.5,2571.8,5.52861]
[1729687057961,3.8877,2572.3,2571.8,5.52861]
[1729687058159,3.88781,2572.2,2571.8,1.6403]
[1729687058790,3.88775,2572.2,2571.8,5.52854]
[1729687059490,7.42759958,2572.3,2571.8,5.52853]
[1729687059695,3.88759,2572.3,2571.8,6.12085038]
[1729687059864,3.88743,2572.4,2571.8,6.19860856]
[1729687060088,3.88743,2572.4,2572.0,3.88796]
[1729687060619,3.54000958,2572.5,2572.1,3.88777]
[1729687060620,7.42729958,2572.5,2572.1,3.88777]
[1729687060914,3.54000958,2572.5,2572.2,3.94595406]
[1729687061241,3.54000958,2572.5,2572.2,0.05831406]
[1729687061420,7.42728958,2572.5,2572.2,0.05831406]
[1729687061715,4.6945714,2572.6,2572.2,3.94600406]
[1729687061877,0.8074514,2572.6,2572.3,3.88749]
[1729687062082,0.8074514,2572.7,2572.3,7.77497]
[1729687062274,3.88697,2572.7,2572.3,3.88748]
[1729687062481,3.88712,2572.6,2572.2,4.34243909]
[1729687062680,7.42697958,2572.7,2572.3,3.8875]
[1729687062934,11.31407958,2572.7,2572.2,4.34243909]
[1729687063107,11.31407958,2572.7,2572.2,0.05831406]
[1729687063108,7.42727958,2572.5,2572.2,0.05831406]
[1729687064083,7.42728958,2572.5,2572.2,0.05831406]
[1729687065192,3.54000958,2572.5,2572.2,3.94602406]
[1729687065392,3.54000958,2572.5,2572.2,0.05831406]
[1729687066937,3.54000958,2572.5,2572.2,3.94599406]
[1729687067429,12.12161098,2572.7,2572.2,3.94596406]
[1729687067672,3.54000958,2572.5,2572.2,0.05831406]
[1729687068154,3.54000958,2572.5,2572.2,3.94601406]
[1729687068531,5.15590958,2572.5,2572.2,0.05831406]
[1729687068726,3.54000958,2572.3,2572.2,0.05831406]
[1729687069171,9.85070098,2572.5,2572.2,0.05831406]
[1729687069471,7.42734958,2572.5,2572.2,0.05831406]
[1729687070028,0.8074514,2572.6,2572.2,5.45122406]
[1729687070270,8.23456098,2572.7,2572.2,5.45122406]
[1729687070640,4.34746098,2572.7,2572.2,5.45122406]
[1729687070877,3.88713,2572.6,2572.2,5.45122406]
[1729687071245,7.42729958,2572.5,2572.2,1.56351406]
[1729687071452,8.23475098,2572.5,2572.2,1.56351406]
[1729687071646,7.42729958,2572.5,2572.2,1.56351406]
[1729687071851,3.54000958,2572.3,2572.2,0.05831406]
[1729687072091,3.54000958,2572.3,2571.9,1.6477]
[1729687072092,3.88782,2572.2,2571.9,1.6477]
[1729687072247,3.88782,2572.2,2571.7,3.8884]
[1729687072450,0.03440403,2572.1,2571.7,5.5361]
[1729687072668,0.03440403,2572.1,2571.8,3.88831]
[1729687073389,0.03440403,2572.1,2571.9,3.88814]
[1729687073743,3.88757,2572.3,2571.9,3.88814]
[1729687073943,0.0343628,2572.0,2571.9,3.88814]
[1729687074183,3.88757,2572.3,2571.9,3.88814]
[1729687074558,0.03427175,2572.2,2571.9,3.88814]
[1729687074765,0.03427175,2572.2,2572.0,0.05831352]
[1729687074962,3.88744,2572.4,2572.0,0.05831352]
[1729687075181,0.03426731,2572.1,2572.0,0.05831352]
[1729687075377,3.88757,2572.3,2572.0,0.05831352]
[1729687075580,0.03426731,2572.1,2572.0,0.05831352]
[1729687075780,3.88757,2572.3,2572.0,0.05831352]
[1729687075950,0.03426731,2572.1,2572.0,0.05831352]
[1729687076145,3.88757,2572.3,2572.0,0.05831352]
[1729687076398,0.03426731,2572.1,2572.0,0.05831352]
[1729687076597,0.8074514,2572.5,2572.1,1.6108]
[1729687076899,3.88713,2572.6,2572.1,5.49858]
[1729687078494,18.07449098,2572.7,2572.2,3.88763]
[1729687078666,11.31415958,2572.7,2572.2,3.88763]
[1729687080033,7.42706958,2572.7,2572.2,3.88763]
[1729687081069,3.54000958,2572.7,2572.3,3.88744]
[1729687081275,7.42703958,2572.7,2572.2,3.8877]
[1729687081507,3.88713,2572.6,2572.2,3.8877]
[1729687082692,7.77434,2572.6,2572.2,3.8877]
[1729687082907,3.88713,2572.6,2572.2,3.8877]
[1729687083606,3.88713,2572.6,2572.2,7.77534]
[1729687083812,3.88713,2572.6,2572.2,3.88764]
[1729687084671,3.88727,2572.5,2572.1,1.6108]
[1729687085005,3.88727,2572.5,2572.1,5.49856]
[1729687085312,3.88727,2572.5,2572.1,1.6108]
[1729687085517,7.77465,2572.5,2572.1,1.6108]
[1729687085676,3.88727,2572.5,2572.1,1.6108]
[1729687085871,3.54000958,2572.3,2571.7,1.6242]
[1729687086090,3.54000958,2572.3,2571.5,1.68252815]
[1729687086091,3.88832,2571.8,2571.5,1.68252815]
[1729687086353,3.88954,2571.0,2570.5,1.5045]
[1729687086512,3.88924,2571.2,2570.6,3.96793678]
[1729687086718,3.54000958,2571.4,2570.6,3.96793678]
[1729687086719,3.88917,2571.3,2570.9,1.5045]
[1729687086917,7.77834,2571.3,2570.9,1.5045]
[1729687087116,3.88917,2571.3,2570.9,1.5045]
[1729687087541,3.88917,2571.3,2571.0,0.0583317]
[1729687087542,3.88916,2571.3,2571.0,0.0583317]
[1729687087741,3.88926,2571.2,2571.0,0.0583317]
[1729687087954,3.88938,2571.1,2571.0,0.0583317]
[1729687088876,8.23651098,2571.4,2571.0,0.0583317]
[1729687089035,3.8891,2571.3,2570.8,3.88983]
[1729687089359,3.8891,2571.3,2570.8,4.66782]
[1729687089540,3.8891,2571.3,2570.8,0.77799]
[1729687089949,3.88924,2571.2,2570.8,0.77799]
[1729687090259,7.42905958,2571.4,2570.8,0.77799]
[1729687090556,9.84159,2571.6,2571.0,3.8894]
[1729687090777,3.88883,2571.5,2571.0,4.509459]
[1729687090969,7.42871958,2571.6,2571.1,3.88929]
[1729687091259,3.88871,2571.6,2571.1,3.88929]
[1729687091458,3.88871,2571.6,2571.1,7.7786]
[1729687091658,7.77748,2571.6,2571.1,4.89025404]
[1729687092065,3.88871,2571.6,2571.2,1.6064]
[1729687092220,3.88871,2571.6,2571.2,5.4956]
[1729687092422,3.8888,2571.5,2571.2,1.6064]
[1729687092769,3.88908,2571.4,2571.1,1.00096404]
[1729687092928,3.88908,2571.4,2571.0,1.6064]
[1729687093261,3.8888,2571.5,2571.0,5.49587]
[1729687094238,7.77767,2571.5,2571.0,5.49587]
[1729687094438,3.8888,2571.5,2571.0,5.49587]
[1729687094683,3.8888,2571.5,2571.0,5.5736529]
[1729687094989,3.8886,2571.7,2571.2,3.88915]
[1729687095154,3.8886,2571.7,2571.3,0.0583312]
[1729687095685,6.3615214,2571.9,2571.4,1.5785]
[1729687095884,3.88827,2571.9,2571.4,1.5785]
[1729687096049,3.88841,2571.8,2571.4,1.5785]
[1729687096255,3.88841,2571.8,2571.5,0.55257812]
[1729687096582,7.77688,2571.8,2571.5,0.55257812]
[1729687096764,3.8885,2571.7,2571.5,0.55257812]
[1729687097274,3.88841,2571.8,2571.5,0.55257812]
[1729687097887,3.88811,2572.0,2571.5,4.44132812]
[1729687098052,3.88811,2572.0,2571.6,6.45181781]
[1729687098252,3.88811,2572.0,2571.7,0.07775969]
[1729687098763,3.88811,2572.0,2571.6,6.45181781]
[1729687098976,7.77626,2572.0,2571.6,2.56326781]
[1729687099139,3.88811,2572.0,2571.6,2.56326781]
[1729687099341,3.88811,2572.0,2571.7,0.70045959]
[1729687100354,3.88819,2571.9,2571.7,0.70045959]
[1729687100580,3.88803,2572.0,2571.7,0.70045959]
[1729687100887,3.88803,2572.0,2571.8,0.05831575]
[1729687101544,3.88891,2571.5,2571.3,1.7215312]
[1729687101845,3.88891,2571.5,2571.3,1.6632]
[1729687102143,3.88893,2571.4,2571.1,1.5128]
[1729687102356,3.88911,2571.3,2571.1,1.5128]
[1729687103381,3.88878,2571.5,2571.1,1.5128]
[1729687103586,3.88895,2571.4,2571.1,1.5128]
[1729687103771,3.88915,2571.3,2571.1,1.5128]
[1729687103976,3.88918,2571.3,2571.2,0.05833037]
[1729687104158,3.88908,2571.3,2571.2,0.05833037]
[1729687105209,3.88894,2571.4,2571.2,0.05833037]
[1729687105409,3.88894,2571.4,2571.1,1.5128]
[1729687105781,3.88878,2571.5,2571.2,0.05833037]
[1729687106412,3.88854,2571.7,2571.2,0.13610884]
[1729687106578,3.88854,2571.7,2571.4,1.6504]
[1729687106778,3.88817,2571.9,2571.4,5.53932]
[1729687106978,3.88817,2571.9,2571.4,5.61708789]
[1729687107202,3.88817,2571.9,2571.5,0.95061679]
[1729687107405,3.8881,2572.0,2571.5,4.83932679]
[1729687107825,3.8881,2572.0,2571.5,0.95061679]
[1729687108028,3.88819,2571.9,2571.4,5.53932]
[1729687108178,3.88819,2571.9,2571.5,3.88873]
[1729687108384,3.8881,2572.0,2571.5,3.88873]
[1729687109437,0.8074514,2572.3,2571.5,3.88873]
[1729687109438,0.8074514,2572.3,2571.7,1.6505]
[1729687109581,3.88772,2572.2,2571.7,1.6505]
[1729687109783,3.88828,2571.9,2571.4,5.5394]
[1729687110055,3.88828,2571.9,2571.4,9.98802304]
[1729687110207,3.8881,2572.0,2571.5,3.8887]
[1729687110519,3.88825,2571.9,2571.4,6.09912304]
[1729687110926,7.77675,2571.8,2571.4,6.09912304]
[1729687111087,3.88833,2571.8,2571.4,6.09912304]
[1729687111420,3.88871,2571.6,2571.4,1.6505]
[1729687111623,3.88893,2571.4,2571.2,0.05833037]
[1729687111827,3.88908,2571.3,2571.2,0.05833037]
[1729687115687,3.88871,2571.6,2571.2,0.05833037]
[1729687115927,3.88887,2571.5,2571.2,0.05833037]
[1729687116592,3.88871,2571.6,2571.2,3.94755037]
[1729687116789,3.88849,2571.7,2571.3,3.88907]
[1729687117218,3.88865,2571.6,2571.2,4.88406741]
[1729687118600,3.88865,2571.6,2571.2,0.99484741]
[1729687118947,3.88881,2571.5,2571.2,0.99484741]
[1729687119153,3.88881,2571.5,2571.2,0.05833037]
[1729687119436,3.88908,2571.3,2571.2,0.05833037]
[1729687119608,3.88903,2571.4,2571.2,0.05833037]
[1729687120172,3.88908,2571.3,2571.2,0.05833037]
[1729687127468,3.88893,2571.4,2571.2,0.05833037]
[1729687128572,3.88893,2571.4,2571.3,1.506]
[1729687128772,7.77796,2571.4,2571.2,0.05833037]
[1729687128925,3.88893,2571.4,2571.2,0.05833037]
[1729687129942,0.8074514,2571.4,2571.2,0.05833037]
[1729687130278,4.6962314,2571.5,2571.2,0.05833037]
[1729687130567,2.01865897,2571.6,2571.2,3.94748037]
[1729687130738,0.8074514,2571.6,2571.3,0.78367604]
[1729687130938,4.6960814,2571.6,2571.2,3.94748037]
[1729687132672,0.8074514,2571.6,2571.4,1.5136]
[1729687133191,4.6960814,2571.6,2571.4,1.5136]
[1729687133646,3.88863,2571.6,2571.4,1.5136]
[1729687133843,4.6959514,2571.7,2571.4,1.5136]
[1729687134292,8.5845214,2571.7,2571.4,1.5136]
[1729687134444,4.6960914,2571.6,2571.4,1.5136]
[1729687134649,0.8074514,2571.6,2571.4,1.5136]
[1729687134891,4.6959814,2571.7,2571.4,1.5136]
[1729687135090,8.5845614,2571.7,2571.4,1.5136]
[1729687135285,0.8074514,2571.6,2571.4,1.5136]
[1729687135492,0.8074514,2571.7,2571.4,6.18604672]
[1729687135661,0.8074514,2571.7,2571.5,3.88877]
[1729687136173,4.6957814,2571.8,2571.4,6.18601672]
[1729687136480,0.8074514,2571.8,2571.4,6.18601672]
[1729687136978,0.8074514,2571.8,2571.5,3.88878]
[1729687137182,0.8074514,2571.8,2571.5,1.01527972]
[1729687137365,0.8074514,2571.8,2571.7,5.45597]
[1729687138698,1.21120757,2571.9,2571.7,3.88847]
[1729687138869,1.21120757,2571.9,2571.8,5.45582]
[1729687139077,1.21120757,2572.5,2572.0,3.888]
[1729687139274,3.54000958,2572.4,2572.1,0.05831399]
[1729687139487,3.54000958,2572.4,2572.2,1.6437]
[1729687139788,2.82611038,2572.5,2572.2,1.6437]